[Event "Israel National League 2024"]
[Site "Israel"]
[Date "2024.03.01"]
[Round "9.30"]
[White "Golod, Vitali"]
[Black "Michaeli, Omri"]
[Result "0-1"]
[ECO "E12"]
[WhiteElo "2498"]
[BlackElo "1971"]
[Annotator "TA"]
[PlyCount "108"]
[EventDate "2024.01.07"]
[EventType "team-tourn"]
[EventCountry "ISR"]
[SourceTitle "playchess.com"]
[Source "ChessBase"]
[SourceQuality "1"]
[TimeControl "40/5400+30:1800+30"]

{[%evp 9,108,57,50,0,0,0,0,0,0,0,0,0,0,0,0,0,0,0,0,0,0,0,20,0,0,0,18,-495,-493,-547,-531,-598,-574,-600,-602,-600,-560,-546,-536,-541,-352,-372,-352,-380,-374,-374,-372,-379,-372,-420,-393,-395,-394,-435,-459,-468,-469,-461,-472,-475,-487,-546,-549,-552,-531,-583,-579,-585,-556,-669,-618,-721,-682,-729,-726,-736,-730,-700,-694,-1029,-1098,-1263,-1189,-4043,-3079,-4878,-2838,-29972,-29973,-29978,-29979,-29979,-29980,-29980,-29981,-29981,-29982,-29982,-29983,-29983,-29984]} 1. d4 {[%emt 0:06:06]} Nf6 {[%emt 0:00:48]} 2. c4 {[%emt 0:00:18]} e6 {[%emt 0:00:23]} 3. Nf3 {[%emt 0:00:09]} b6 {[%emt 0:00:07]} 4. a3 {[%emt 0:01:41]} c5 {[%emt 0:04:56]} 5. d5 {[%emt 0:01:58]} Ba6 {[%emt 0:00:58] [#]} 6. e4 {[%emt 0:00:58]} Nxe4 $11 {[%emt 0:07:34]} 7. Bd3 {[%emt 0:00:21]} Nf6 {[%emt 0:06:35]} 8. O-O {[%emt 0:00:31] The position is equal.} Be7 {[%emt 0:03:30]} 9. Re1 {[%emt 0:00:44]} O-O {[%emt 0:02:01]} 10. Nc3 {[%emt 0:00:04]} exd5 {[%emt 0:04:08]} 11. cxd5 {[%emt 0:00:14][%cal Od5d6]} Bxd3 {[%emt 0:01:19]} 12. Qxd3 {[%emt 0:00:25] Black must now prevent d6.} d6 {[%emt 0:00:15]} 13. Nh4 {[%emt 0:01:05]} g6 {[%emt 0:04:55] Wards off Nf5} 14. Bh6 {[%emt 0:04:41]} Re8 {[%emt 0:08:16] ...Ng4 would now be deadly.} 15. Nf5 $1 {[%emt 0:00:46]} Ng4 {[%emt 0:00:39] [#]} 16. Qg3 $1 {[%emt 0:09:11]} Nxh6 {[%emt 0:01:49]} 17. Nxh6+ {[%emt 0:00:41]} Kg7 {[%emt 0:02:31] [#]} 18. Ne4 $2 {[%emt 0:15:07][%mdl 8192] Now White is beyond hope.} Kxh6 $19 {[%emt 0:10:34]} 19. Qc3 {[%emt 0:05:03]} Nd7 {[%emt 0:04:24]} 20. Re3 {[%emt 0:06:08]} Bf6 {[%emt 0:02:10]} 21. Qd2 {[%emt 0:08:51]} Kg7 {[%emt 0:00:50]} 22. Rae1 {[%emt 0:00:12]} Ne5 {[%emt 0:06:12] And now ...Nc4 would win.} 23. R3e2 {[%emt 0:16:25]} h5 {[%emt 0:09:32]} 24. b3 {[%emt 0:01:47]} Kf8 {[%emt 0:01:28]} 25. Nxf6 {[%emt 0:08:17]} Qxf6 {[%emt 0:00:19]} 26. Qh6+ {[%emt 0:00:03]} Qg7 {[%emt 0:00:14]} 27. Qxg7+ {[%emt 0:00:05]} Kxg7 {[%emt 0:00:10]} 28. f4 {[%emt 0:00:02] [#]} f6 $1 {[%emt 0:00:36]} 29. Kf1 {[%emt 0:05:36] [#]} (29. fxe5 Rxe5) 29... Kf7 $1 {[%emt 0:00:42]} 30. fxe5 {[%emt 0:00:13]} Rxe5 {[%emt 0:00:12]} 31. Rxe5 {[%emt 0:00:12]} dxe5 {[%emt 0:02:09][%mdl 4096] Endgame. KR-KR} ({But not} 31... fxe5 32. Ke2 $19) 32. Ke2 {[%emt 0:05:30]} Rd8 {[%emt 0:01:01]} 33. Rd1 {[%emt 0:00:37]} h4 {[%emt 0:02:34]} 34. Ke3 {[%emt 0:01:51]} f5 {[%emt 0:00:31]} 35. b4 {[%emt 0:00:16]} cxb4 {[%emt 0:03:08]} 36. axb4 {[%emt 0:00:03]} Ke7 {[%emt 0:00:49]} 37. b5 {[%emt 0:00:47]} Rc8 {[%emt 0:01:16]} 38. d6+ {[%emt 0:01:45]} Kd7 {[%emt 0:00:12]} 39. Rd2 {[%emt 0:00:35]} Rc3+ {[%emt 0:05:28]} 40. Kf2 {[%emt 0:00:39]} Rb3 {[%emt 0:02:20]} 41. Ra2 {[%emt 0:03:56]} Kxd6 {[%emt 0:00:35]} 42. Rxa7 {[%emt 0:00:33]} Ke6 {[%emt 0:00:11]} 43. Rh7 {[%emt 0:00:59]} Rb4 {[%emt 0:00:32]} 44. h3 {[%emt 0:11:20]} Kf6 {[%emt 0:01:42]} 45. Rh8 {[%emt 0:02:22]} Kg5 {[%emt 0:00:46]} 46. Re8 {[%emt 0:03:20]} Rxb5 {[%emt 0:00:46]} 47. Re6 {[%emt 0:00:04]} Rb2+ {[%emt 0:01:24]} 48. Kf1 {[%emt 0:00:34]} e4 {[%emt 0:00:11] Black mates.} 49. Kg1 {[%emt 0:00:16]} b5 {[%emt 0:00:32]} 50. Kf1 {[%emt 0:00:03]} b4 {[%emt 0:00:47]} 51. Rb6 {[%emt 0:01:08]} b3 {[%emt 0:00:12]} 52. Kg1 {[%emt 0:00:53]} Rb1+ {[%emt 0:00:49]} 53. Kf2 {[%emt 0:00:16]} b2 {[%emt 0:00:15]} 54. Rb3 {[%emt 0:01:35] [#]} e3+ $1 {[%emt 0:00:27] Weighted Error Value: White=0.50/Black=0.04 (flawless) .  Loses game:     	White=1     	---        Inaccurate:     	---       	Black=1      OK:         	White=9     	Black=20     Best:        	White=2     	Black=5      Strong:       	White=1     	---} 0-1

[Event "Israel National League 2024"]
[Site "Israel"]
[Date "2024.03.01"]
[Round "9.31"]
[White "Levin, Guy"]
[Black "Greenfeld, Alon"]
[Result "1/2-1/2"]
[ECO "A40"]
[WhiteElo "2435"]
[BlackElo "2455"]
[Annotator "TA"]
[PlyCount "109"]
[EventDate "2024.01.07"]
[EventType "team-tourn"]
[EventCountry "ISR"]
[SourceTitle "playchess.com"]
[Source "ChessBase"]
[SourceQuality "1"]
[TimeControl "40/5400+30:1800+30"]

{[%evp 29,109,8,14,12,12,0,6,0,0,0,19,0,17,0,6,0,0,-19,-25,-13,0,-55,24,23,19,26,22,38,76,88,80,74,56,63,102,102,108,75,88,88,91,86,91,92,86,94,97,74,91,90,98,97,107,116,101,85,150,158,309,262,217,83,65,31,36,26,39,14,17,37,37,29,49,0,0,8,0,0,0,0,10,0]} 1. Nf3 {[%emt 0:00:06]} c5 {[%emt 0:02:07]} 2. e3 {[%emt 0:00:18]} g6 {[%emt 0:03:47]} 3. d4 {[%emt 0:00:22]} Bg7 {[%emt 0:00:41]} 4. a3 {[%emt 0:09:48]} cxd4 {[%emt 0:14:21]} 5. exd4 {[%emt 0:00:09]} Nf6 {[%emt 0:00:06]} 6. Bd3 {[%emt 0:00:48] A40: Unusual replies to 1 d4.} Nc6 $146 {[%emt 0:02:21]} ({Predecessor:} 6... O-O 7. O-O d5 8. Re1 Bf5 9. Bxf5 gxf5 10. Nbd2 e6 11. Nf1 Nc6 12. Ng3 Kh8 {½-½ Ganaus,H (2303)-Weiss,C (2361) Niederoesterreich Landesliga 1617 2016 (5.1)}) 7. O-O {[%emt 0:02:44]} O-O {[%emt 0:02:52]} 8. Re1 {[%emt 0:03:16]} d6 {[%emt 0:15:19]} 9. Nc3 {[%emt 0:06:42]} Bg4 {[%emt 0:05:30]} 10. h3 {[%emt 0:03:03]} Bxf3 {[%emt 0:00:06]} 11. Qxf3 {[%emt 0:00:08]} d5 {[%emt 0:00:56]} 12. Be3 {[%emt 0:14:04]} e6 {[%emt 0:03:41]} 13. Qd1 {[%emt 0:09:36]} Rc8 {[%emt 0:03:18]} 14. Ne2 {[%emt 0:13:27]} Qb6 {[%emt 0:07:05]} 15. Rb1 {[%emt 0:05:11]} Rfd8 {[%emt 0:04:28]} 16. c3 {[%emt 0:03:50]} Na5 {[%emt 0:02:55]} 17. b3 {[%emt 0:03:39]} Qc6 {[%emt 0:02:41]} 18. a4 {[%emt 0:03:16]} a6 {[%emt 0:00:29]} 19. Qc2 {[%emt 0:01:15]} b5 {[%emt 0:06:11]} 20. axb5 {[%emt 0:01:56]} axb5 {[%emt 0:00:17]} 21. Qb2 {[%emt 0:05:20]} (21. Ra1 $5 Nc4 22. Bg5 $17 (22. bxc4 bxc4 23. Bxg6 hxg6 $15)) 21... Nb7 {[%emt 0:03:37]} 22. Ra1 {[%emt 0:00:37]} Nd6 {[%emt 0:01:37]} 23. Ra5 {[%emt 0:02:11]} Nfe4 {[%emt 0:02:53]} 24. Rc1 {[%emt 0:00:27]} Rb8 {[%emt 0:01:25]} (24... Nf5 {seems wilder.} 25. Bf4 e5 26. dxe5 Qb6) 25. f3 {[%emt 0:02:23]} (25. Qa2 $11) 25... Nf6 {[%emt 0:00:28]} (25... Nf5 $1 $15 26. Bf4 e5) 26. Qa2 {[%emt 0:01:41]} Nfe8 {[%emt 0:03:58]} 27. Ra6 {[%emt 0:01:45]} Rb6 {[%emt 0:01:32]} 28. Ra1 {[%emt 0:00:28]} Bf8 {[%emt 0:02:40]} 29. Rxb6 {[%emt 0:01:39]} Qxb6 {[%emt 0:00:02]} 30. Qa7 {[%emt 0:00:44]} Qxa7 {[%emt 0:02:45]} 31. Rxa7 {[%emt 0:00:02]} Rb8 {[%emt 0:00:58]} 32. Bf4 {[%emt 0:00:37]} f6 {[%emt 0:01:47]} 33. Kf1 {[%emt 0:02:07]} Rc8 {[%emt 0:00:26]} 34. Ke1 {[%emt 0:00:35]} Rc7 {[%emt 0:00:56]} 35. Ra6 {[%emt 0:00:30]} Rb7 {[%emt 0:00:17]} 36. g4 {[%emt 0:01:39]} Kf7 {[%emt 0:00:37]} 37. h4 {[%emt 0:00:27]} Ke7 {[%emt 0:02:34]} 38. Kd1 {[%emt 0:01:39]} Kd7 {[%emt 0:00:27]} 39. Ra8 {[%emt 0:00:25]} Be7 {[%emt 0:00:24]} 40. h5 {[%emt 0:00:23]} gxh5 {[%emt 0:00:37]} 41. gxh5 {[%emt 0:30:02]} ({Of course not} 41. Bxh7 $6 hxg4 42. fxg4 b4 $11) 41... f5 {[%emt 0:30:13]} 42. Nc1 {[%emt 0:00:00]} Nf7 {[%emt 0:00:00] [#]} (42... Rc7 $142) 43. b4 $1 $16 {[%emt 0:00:00]} Nf6 $2 {[%emt 0:00:00]} (43... Bd6 $16 {is a better defense.} 44. Bxd6 (44. Nb3 Nc7 $11) 44... Nexd6) 44. Nb3 {[%emt 0:00:00]} Nxh5 {[%emt 0:00:00]} 45. Bh2 {[%emt 0:00:00]} (45. Bb8 $18 {has better winning chances.}) 45... f4 $16 {[%emt 0:00:00]} 46. Na5 {[%emt 0:00:00]} Rb6 {[%emt 0:00:00]} 47. Ra7+ {[%emt 0:00:00]} Ke8 $1 {[%emt 0:00:00]} 48. Bxh7 {[%emt 0:00:00]} Ng3 {[%emt 0:00:00]} 49. Ra8+ {[%emt 0:00:00]} Kd7 {[%emt 0:00:00]} 50. Bg6 {[%emt 0:00:56]} Ng5 $1 {[%emt 0:01:17]} 51. Be8+ {[%emt 0:00:59]} Kc7 $1 {[%emt 0:00:04]} 52. Ra7+ {[%emt 0:00:46]} Kd8 {[%emt 0:00:09]} 53. Ra8+ {[%emt 0:01:38]} Kc7 {[%emt 0:00:02]} 54. Ra7+ {[%emt 0:00:05]} Kd8 {[%emt 0:00:06]} 55. Ra8+ {[%emt 0:03:29]} 1/2-1/2

[Event "Israel National League 2024"]
[Site "Israel"]
[Date "2024.03.01"]
[Round "9.32"]
[White "Dvoirys, Semen I."]
[Black "Grinberg, Eyal"]
[Result "1-0"]
[ECO "B88"]
[WhiteElo "2466"]
[BlackElo "2471"]
[Annotator "RC"]
[PlyCount "67"]
[EventDate "2024.01.07"]
[EventType "team-tourn"]
[EventCountry "ISR"]
[SourceTitle "playchess.com"]
[Source "ChessBase"]
[SourceQuality "1"]
[TimeControl "40/5400+30:1800+30"]

1. e4 {[%emt 0:00:05]} c5 {[%emt 0:04:35]} 2. Nf3 {[%emt 0:00:05]} d6 {[%emt 0:00:03]} 3. d4 {[%emt 0:00:10]} cxd4 {[%emt 0:00:07]} 4. Nxd4 {[%emt 0:00:04]} Nf6 {[%emt 0:00:05]} 5. Nc3 {[%emt 0:00:04]} a6 {[%emt 0:00:03]} 6. Bc4 {[%emt 0:01:04]} e6 {[%emt 0:00:40]} 7. a4 {[%emt 0:00:06]} Be7 {[%emt 0:02:26]} 8. O-O {[%emt 0:00:06]} O-O {[%emt 0:00:16]} 9. Be3 {[%emt 0:00:47]} Nc6 {[%emt 0:05:36]} 10. Qe2 {[%emt 0:00:11]} Qc7 {[%emt 0:08:47]} 11. f4 {[%emt 0:01:13]} Nxd4 {[%emt 0:02:11]} 12. Bxd4 {[%emt 0:00:05]} e5 {[%emt 0:01:03]} 13. Be3 {[%emt 0:00:05]} Be6 {[%emt 0:05:11]} 14. Bb3 {[%emt 0:00:14]} Rac8 {[%emt 0:03:26]} 15. Qf3 {[%emt 0:10:10]} exf4 {[%emt 0:05:28]} 16. Qxf4 {[%emt 0:00:13]} Qa5 {[%emt 0:04:10]} 17. Rad1 {[%emt 0:39:53]} Bxb3 {[%emt 0:09:02]} 18. cxb3 {[%emt 0:00:01]} Qb4 {[%emt 0:00:29]} 19. Qg3 {[%emt 0:02:46]} Kh8 {[%emt 0:08:07]} 20. Bd4 {[%emt 0:01:37]} Qxb3 {[%emt 0:10:01]} 21. Rd3 {[%emt 0:00:07]} Qe6 {[%emt 0:00:12]} 22. Nd5 {[%emt 0:00:32]} Ne8 {[%emt 0:01:31]} 23. Qf4 {[%emt 0:08:04]} Bd8 {[%emt 0:04:22]} 24. b3 {[%emt 0:03:14]} Rc2 {[%emt 0:02:32]} 25. Ne3 {[%emt 0:01:06]} Ra2 {[%emt 0:01:35]} 26. Nf5 {[%emt 0:01:07]} Re2 {[%emt 0:04:38]} 27. Qg4 {[%emt 0:01:03]} Rxe4 {[%emt 0:03:51]} 28. Bxg7+ {[%emt 0:00:11]} Kg8 {[%emt 0:00:47]} 29. Qg3 {[%emt 0:00:28]} Qg6 {[%emt 0:06:58]} 30. Bxf8 {[%emt 0:00:33]} Kxf8 {[%emt 0:00:21]} 31. Qf3 {[%emt 0:01:06]} Qe6 {[%emt 0:04:26]} 32. Nxd6 {[%emt 0:00:56]} Bb6+ {[%emt 0:00:12]} 33. Kh1 {[%emt 0:00:06]} Re1 {[%emt 0:00:08]} 34. Nxf7 {[%emt 0:01:54]} 1-0

[Event "Israel National League 2024"]
[Site "Israel"]
[Date "2024.03.01"]
[Round "9.33"]
[White "Mesropov, Konstantin"]
[Black "Khmelniker, Ilya"]
[Result "1-0"]
[ECO "E62"]
[WhiteElo "2440"]
[BlackElo "2469"]
[Annotator "TA"]
[PlyCount "29"]
[EventDate "2024.01.07"]
[EventType "team-tourn"]
[EventCountry "ISR"]
[SourceTitle "playchess.com"]
[Source "ChessBase"]
[SourceQuality "1"]
[TimeControl "40/5400+30:1800+30"]

{[%evp 13,29,35,35,4,20,15,29,8,8,15,11,-25,-27,-19,-28,-22,224,210]} 1. Nf3 {[%emt 0:00:43]} Nf6 {[%emt 0:00:51]} 2. c4 {[%emt 0:00:16]} g6 {[%emt 0:04:30]} 3. Nc3 {[%emt 0:01:33]} Bg7 {[%emt 0:00:11]} 4. g3 {[%emt 0:03:09]} O-O {[%emt 0:03:56]} 5. Bg2 {[%emt 0:02:34]} c6 {[%emt 0:08:50]} 6. d4 {[%emt 0:05:50]} d6 {[%emt 0:01:11][%cal Bd7d6,Bd6d5][%mdl 32]} 7. O-O {[%emt 0:03:03]} Bf5 {[%emt 0:00:06]} 8. Bg5 {[%emt 0:13:51]} Na6 {[%emt 0:21:27]} 9. Qd2 {[%emt 0:07:27]} Re8 {[%emt 0:00:29]} 10. Nh4 {[%emt 0:14:12] next Nxf5 is good for White. White has an edge.} Be6 {[%emt 0:01:06]} 11. b3 {[%emt 0:00:23]} d5 {[%emt 0:01:48]} 12. c5 {[%emt 0:03:32] [#]} Ne4 $1 {[%emt 0:08:44]} 13. Bxe4 {[%emt 0:03:25]} dxe4 {[%emt 0:00:06]} 14. Rad1 {[%emt 0:00:15] [#]} Nxc5 $2 {[%emt 0:07:50]} 15. dxc5 {[%emt 0:37:47] Weighted Error Value: White=0.12 (very precise) /Black=0.59.  Loses game:     	---       	Black=1      Inaccurate:     	White=1     	---        OK:         	White=2     	Black=3} 1-0

[Event "Israel National League 2024"]
[Site "Israel"]
[Date "2024.03.01"]
[Round "9.34"]
[White "Vydeslaver, Alik"]
[Black "Bakalchuk, Johnatan"]
[Result "1-0"]
[ECO "E68"]
[WhiteElo "2373"]
[BlackElo "2450"]
[Annotator "TA"]
[PlyCount "145"]
[EventDate "2024.01.07"]
[EventType "team-tourn"]
[EventCountry "ISR"]
[SourceTitle "playchess.com"]
[Source "ChessBase"]
[SourceQuality "1"]
[TimeControl "40/5400+30:1800+30"]

{[%evp 16,145,54,9,44,34,36,28,40,25,31,20,52,42,43,47,96,92,100,100,115,109,113,114,118,101,162,160,216,215,200,205,321,189,202,200,205,191,156,168,176,177,318,314,302,332,324,312,335,215,317,209,218,194,204,234,277,113,139,158,268,225,308,300,290,176,185,98,96,106,85,83,108,108,227,208,511,494,504,186,187,186,199,199,188,197,189,195,177,181,177,166,159,184,229,158,239,235,244,232,241,230,239,184,597,232,168,0,666,666,647,553,780,781,479,0,4743,4644,3028,2102,29959,29959,29963,11358,29970,29969,29993,29994,29994,29995,29997,551]} 1. Nf3 {[%emt 0:00:22]} g6 {[%emt 0:00:42]} 2. g3 {[%emt 0:00:21]} Bg7 {[%emt 0:00:17]} 3. d4 {[%emt 0:00:07]} Nf6 {[%emt 0:00:12]} 4. Bg2 {[%emt 0:00:05]} O-O {[%emt 0:01:05]} 5. O-O {[%emt 0:00:29]} d6 {[%emt 0:00:46]} 6. c4 {[%emt 0:00:31]} Nbd7 {[%emt 0:00:47]} 7. Nc3 {[%emt 0:02:47]} e5 {[%emt 0:00:23]} 8. e4 {[%emt 0:00:40]} a6 {[%emt 0:00:37]} 9. Re1 {[%emt 0:00:27]} Re8 {[%emt 0:01:38]} (9... exd4 $5 10. Nxd4 Rb8 $14) 10. d5 {[%emt 0:05:50]} a5 {[%emt 0:02:17]} 11. Qc2 {[%emt 0:13:28]} Nc5 {[%emt 0:01:33] White has an edge.} 12. b3 {[%emt 0:25:43]} c6 {[%emt 0:11:18]} 13. Bg5 {[%emt 0:05:54]} h6 {[%emt 0:01:20][%cal Bh7h6,Bh6h5,Bh5h4,Bh4h3][%mdl 32]} 14. Be3 {[%emt 0:04:26]} cxd5 {[%emt 0:04:14]} 15. cxd5 {[%emt 0:01:32]} Bd7 {[%emt 0:03:32]} (15... b6 $1 $14 {is superior.}) 16. Bxc5 $16 {[%emt 0:01:24]} dxc5 {[%emt 0:00:15]} 17. Bf1 {[%emt 0:00:02]} Re7 {[%emt 0:03:56]} 18. Nd2 {[%emt 0:08:19]} h5 {[%emt 0:02:05]} 19. a4 {[%emt 0:01:16]} h4 {[%emt 0:01:29]} 20. Nc4 {[%emt 0:01:03]} (20. gxh4 Nh5 $14) 20... Bh6 {[%emt 0:03:33]} (20... Rb8 $16 21. Rad1 (21. gxh4 Re8 $14) 21... Re8) 21. Rad1 {[%emt 0:04:37]} (21. gxh4 $6 Nh5 $14) 21... Nh7 {[%emt 0:04:46]} (21... Re8 $16 22. Nb5 (22. gxh4 Nh5 $14) 22... Bxb5) 22. d6 $18 {[%emt 0:02:51]} (22. gxh4 $6 Re8 $16) 22... Re8 {[%emt 0:00:07]} 23. Nd5 {[%emt 0:00:30] Black must now prevent Ne7+.} Ng5 {[%emt 0:00:32]} (23... hxg3 $142 24. hxg3 (24. fxg3 Rb8 $18) 24... Rb8) 24. Bg2 {[%emt 0:03:08]} (24. gxh4 $2 Nf3+ 25. Kg2 Qxh4 $19 (25... Nxe1+ 26. Rxe1 Qxh4 27. Qc3 $15) (25... Nxe1+ 26. Rxe1 Qxh4 27. Ncb6 $19)) (24. Ncb6 $142) 24... h3 {[%emt 0:20:58]} 25. Bh1 {[%emt 0:00:19]} Bg7 {[%emt 0:07:48]} 26. Ncb6 {[%emt 0:05:24] A dynamic duo of knights.} Ra6 {[%emt 0:03:16]} 27. Nxd7 {[%emt 0:02:03]} (27. Qxc5 $6 Ne6 28. Qe3 Nd4 29. Nxd7 Qxd7 $14) 27... Qxd7 {[%emt 0:00:11]} 28. Nc7 {[%emt 0:00:20]} (28. Qxc5 Ne6 29. Qb5 Rd8 $17) 28... Rc6 {[%emt 0:02:48]} (28... Rxd6 {was worth a try.} 29. Nxe8 Rxd1 30. Rxd1 Qxe8 31. Qxc5 Qe6) 29. Nxe8 {[%emt 0:00:12]} Qxe8 {[%emt 0:00:01]} 30. d7 {[%emt 0:04:51]} Qd8 {[%emt 0:00:02]} 31. Rd5 {[%emt 0:01:37]} Ne6 {[%emt 0:00:31]} 32. Qc4 {[%emt 0:00:22] Bf3 is the strong threat.} Rb6 {[%emt 0:01:14]} (32... Nd4 $142 33. Rd1 (33. Rxc5 Qxd7 34. Rxc6 bxc6 $11) 33... g5) 33. Red1 {[%emt 0:01:23]} Rb4 {[%emt 0:00:25]} 34. Qf1 {[%emt 0:00:47]} Rxb3 {[%emt 0:01:18]} 35. Qxh3 {[%emt 0:00:05]} c4 {[%emt 0:00:21]} 36. Qg4 {[%emt 0:00:51]} (36. Qf1 $18 Rb4 37. Bf3) 36... c3 $16 {[%emt 0:00:42] Strongly threatening ...c2.} 37. Rc1 {[%emt 0:00:58]} Bf6 {[%emt 0:04:04]} (37... Bh6 $16 {is a better defense.} 38. Qd1 Bxc1 (38... Nd4 $2 39. Rxe5 Qxd7 40. Rd5 $18) 39. Qxb3 Bd2) 38. Qf3 {[%emt 0:01:12]} Kg7 {[%emt 0:01:07]} 39. Rxc3 {[%emt 0:00:47]} Rb1+ {[%emt 0:05:26]} 40. Rd1 {[%emt 0:00:32]} Nd4 {[%emt 0:02:24]} 41. Rxb1 {[%emt 0:31:46]} ({White should try} 41. Qg4 $1 $18 Rxd1+ 42. Qxd1) 41... Nxf3+ {[%emt 0:30:08]} 42. Bxf3 {[%emt 0:00:04]} Qxd7 {[%emt 0:00:13]} 43. Rcb3 {[%emt 0:00:00] White is more active.} Qxa4 {[%emt 0:00:00]} 44. Rxb7 {[%emt 0:00:00]} Qc2 {[%emt 0:00:00] [#]} (44... Bd8 $16) 45. Rd1 $1 $18 {[%emt 0:00:00]} a4 $2 {[%emt 0:00:00]} (45... Bg5 46. Rdd7 Qa2) 46. Rdd7 {[%emt 0:00:00]} Qc4 {[%emt 0:00:00]} 47. Ra7 $2 {[%emt 0:00:00]} (47. Kg2) 47... a3 {[%emt 0:00:00]} 48. Kg2 {[%emt 0:00:00]} a2 {[%emt 0:00:00]} 49. Rd2 {[%emt 0:00:00]} Be7 {[%emt 0:00:00]} 50. Raxa2 {[%emt 0:00:00]} (50. Rxe7 $2 {is the wrong capture.} a1=Q (50... a1=B $2 51. Be2 $18) 51. Rd1 Qac3 $19) 50... Bc5 {[%emt 0:00:00]} 51. Rac2 {[%emt 0:00:00]} Qb4 {[%emt 0:00:00]} 52. Rb2 {[%emt 0:00:00]} Qa3 {[%emt 0:00:00]} 53. Rb7 {[%emt 0:00:00]} Bd4 {[%emt 0:00:00]} 54. Rc2 {[%emt 0:00:00]} Qa4 {[%emt 0:00:00]} 55. Rbc7 {[%emt 0:00:00]} Qa1 {[%emt 0:00:00]} (55... Kh6 $16 56. h4 Bb6) 56. h4 {[%emt 0:00:00][%cal Bh2h4,Bh4h5][%mdl 32]} Bb6 {[%emt 0:00:50]} 57. R7c6 {[%emt 0:00:00]} Qa4 {[%emt 0:03:04]} 58. R6c4 {[%emt 0:00:00]} Qa3 {[%emt 0:00:44]} 59. h5 {[%emt 0:00:00] Threatens to win with hxg6.} Kh6 $2 {[%emt 0:03:02]} (59... Qd3 60. hxg6 fxg6) 60. Rc6 $2 {[%emt 0:00:00]} (60. hxg6 fxg6 61. Bg4) 60... Qa4 {[%emt 0:00:43]} 61. R6c4 $2 {[%emt 0:00:00]} (61. Rc8) 61... Qa3 $1 {[%emt 0:00:03]} 62. hxg6 {[%emt 0:00:01]} fxg6 {[%emt 0:00:02]} 63. Bg4 {[%emt 0:00:32]} Kg5 {[%emt 0:02:57]} 64. Be6 {[%emt 0:00:17]} Bd4 {[%emt 0:01:14]} 65. Bd5 $2 {[%emt 0:00:12]} (65. Rc6 $18 {And now Bf7 would win.} Qf8 66. Bd5) 65... Qd3 $2 {[%emt 0:01:03][%mdl 8192] [#]} (65... Kg4 $11) 66. Rc6 $1 {[%emt 0:00:19]} Kh6 {[%emt 0:01:40]} 67. Ra2 {[%emt 0:00:16] White threatens Raa6 and mate.} Kh5 {[%emt 0:01:09]} 68. Rf6 {[%emt 0:01:23]} Bc5 {[%emt 0:07:38]} 69. Ra8 {[%emt 0:00:50] Rg8 would kill now.} Be7 {[%emt 0:00:00]} 70. Re6 {[%emt 0:01:00][%csl LRe5,LRe7] White mates.} Bc5 {[%emt 0:00:27]} 71. Rh8+ {[%emt 0:00:26]} Kg5 {[%emt 0:00:09]} 72. Rg8 {[%emt 0:00:05]} Bxf2 {[%emt 0:00:39]} 73. Rgxg6+ {[%emt 0:00:07] Weighted Error Value: White=0.40/Black=0.44.  Missed win:     	White=1     	---        Mistake:       	White=5     	Black=11     Inaccurate:     	White=4     	Black=2      OK:         	White=22    	Black=14     Best:        	White=6     	Black=5      Strong:       	White=2     	Black=1} (73. Rexg6+ $142 Kh5 74. g4+ Kh4 75. Rh8#) 1-0